bitfinex-derivatives/quotes_ETHF0:USTF0_20250321
["timestamp","ask_amount","ask_price","bid_price","bid_amount"]
[1742567019011,4.23204,1953.6,1953.5,0.00767794]
[1742567019205,7.86904,1953.6,1953.5,0.00767794]
[1742567019412,1.02434,1953.4,1953.3,1.3005]
[1742567019911,1.0245,1953.1,1953.0,1.70931]
[1742567020211,1.0245,1953.1,1953.0,6.31651]
[1742567020410,1.0245,1953.1,1953.0,1.3994]
[1742567021305,1.0245,1953.1,1952.9,0.69587794]
[1742567021306,1.02455,1953.0,1952.9,1.03226794]
[1742567021614,5.7521,1953.3,1952.9,0.00767794]
[1742567021806,1.02448,1953.2,1953.1,1.02445]
[1742567022001,2.43038,1953.2,1953.1,1.02445]
[1742567022804,1.02454,1953.1,1953.0,1.02451]
[1742567023110,1.02442,1953.3,1953.2,1.02445]
[1742567023302,1.02445,1953.3,1953.2,1.02442]
[1742567023499,1.02445,1953.2,1953.1,3.65977]
[1742567023702,7.11167,1953.4,1952.9,1.03225794]
[1742567023703,2.56111,1953.3,1952.9,1.03225794]
[1742567024017,4.23235,1953.0,1952.9,0.00767794]
[1742567024206,6.8458,1953.2,1952.9,0.00767794]
[1742567024521,3.8798,1953.6,1953.3,1.02434]
[1742567024812,1.02423,1953.7,1953.6,1.0242]
[1742567025013,1.343,1953.7,1953.6,41.8242]
[1742567025213,2.36719,1953.7,1953.6,41.8242]
[1742567025414,2.36719,1953.7,1953.6,40.8]
[1742567025613,1.343,1953.7,1953.4,2.32881]
[1742567025813,1.02428,1953.6,1953.5,1.02428]
[1742567026007,1.02429,1953.5,1953.4,2.32881]
[1742567026208,1.3001,1953.5,1953.4,43.12881]
[1742567026808,1.02422,1953.7,1953.6,1.02424]
[1742567027005,1.3001,1953.7,1953.6,1.02424]
[1742567027320,1.3001,1953.7,1953.4,47.87315]
[1742567027321,1.02424,1953.6,1953.5,1.02425]
[1742567027610,4.5079,1953.7,1953.3,1.02436]
[1742567027814,2.32439,1953.5,1953.4,1.3385]
[1742567028012,2.32439,1953.5,1953.4,2.36284]
[1742567028209,2.32439,1953.5,1953.4,1.3385]
[1742567028415,1.02434,1953.4,1953.3,1.02435]
[1742567028619,2.36164,1953.4,1953.3,1.02435]
[1742567028813,1.02439,1953.3,1953.2,1.69031]
[1742567029009,1.02439,1953.3,1953.2,3.01541]
[1742567029212,3.89825,1953.4,1953.0,4.66251]
[1742567029516,1.02445,1953.2,1953.1,1.0245]
[1742567029716,1.02436,1953.4,1953.3,1.02434]
[1742567029916,1.02442,1953.3,1953.2,1.02441]
[1742567030415,1.02449,1953.2,1953.1,1.02447]
[1742567030611,1.02444,1953.3,1953.2,1.02442]
[1742567030817,2.36174,1953.3,1953.2,1.02442]
[1742567031219,3.638,1953.5,1953.4,1.02434]
[1742567031417,3.03526,1953.6,1953.5,1.02429]
[1742567031616,1.02431,1953.5,1953.4,1.02429]
[1742567031918,1.3416,1953.5,1953.4,2.41809]
[1742567032319,5.36264,1953.7,1953.6,1.02424]
[1742567032617,6.70424,1953.7,1953.6,1.02424]
[1742567032816,6.00384,1953.7,1953.6,1.02424]
[1742567033220,2.36584,1953.7,1953.6,1.02424]
[1742567033409,1.02427,1953.6,1953.5,1.02425]
[1742567033614,2.36587,1953.6,1953.5,1.02425]
[1742567034517,1.3416,1953.6,1953.5,1.02425]
[1742567034823,1.0242,1953.7,1953.6,1.02424]
[1742567035122,2.3276,1953.7,1953.6,1.02424]
[1742567035313,1.02425,1953.6,1953.5,1.02425]
[1742567035513,1.3034,1953.6,1953.5,1.02425]
[1742567035722,2.32764,1953.6,1953.5,1.02425]
[1742567035911,1.3034,1953.6,1953.5,1.02425]
[1742567036616,1.03184794,1953.8,1953.7,1.02419]
[1742567036825,2.33524794,1953.8,1953.7,1.02419]
[1742567037121,1.02422,1953.7,1953.6,1.0242]
[1742567037323,1.3349,1953.7,1953.6,1.0242]
[1742567038220,1.03183794,1953.8,1953.6,1.0242]
[1742567038422,1.03183794,1953.8,1953.7,1.02419]
[1742567038719,0.00767794,1953.8,1953.7,1.02419]
[1742567039120,1.03180794,1953.8,1953.7,1.02419]
[1742567039311,0.00767794,1953.8,1953.6,3.2078]
[1742567039516,0.00767794,1953.8,1953.7,1.02419]
[1742567039720,0.00767794,1953.8,1953.7,1.74079]
[1742567040518,1.37687794,1953.8,1953.7,1.74079]
[1742567040918,0.00767794,1953.8,1953.7,1.74079]
[1742567041222,2.55969,1954.3,1953.9,2.56013]
[1742567041223,3.637,1954.3,1953.9,2.56013]
[1742567041430,6.0301,1954.3,1954.2,1.02392]
[1742567041727,2.3931,1954.3,1954.2,1.02392]
[1742567041928,1.02395,1954.2,1954.1,1.02394]
[1742567042124,1.02401,1954.1,1954.0,1.024]
[1742567042319,1.02401,1954.1,1954.0,1.03167794]
[1742567042520,1.3692,1954.2,1954.1,1.02398]
[1742567043122,1.02398,1954.1,1954.0,1.03168794]
[1742567043426,1.02398,1954.1,1954.0,0.00767794]
[1742567043827,2.38758,1954.1,1954.0,0.00767794]
[1742567044432,1.3636,1954.1,1954.0,1.03170794]
[1742567044626,2.38758,1954.1,1954.0,1.03170794]
[1742567045323,2.38758,1954.1,1954.0,0.00767794]
[1742567045627,3.637,1954.2,1954.0,0.00767794]
[1742567045830,5.0006,1954.2,1954.1,1.02398]
[1742567046216,1.3636,1954.2,1954.1,1.02398]
[1742567046421,0.00767794,1954.3,1954.2,1.02392]
[1742567046617,0.00767794,1954.3,1954.2,2.32922]
[1742567046825,0.6696,1954.6,1954.5,1.02377]
[1742567047125,3.06235,1954.6,1954.2,9.17302]
[1742567047324,2.0386,1954.6,1954.5,1.02377]
[1742567047832,1.02377,1954.5,1954.4,1.02378]
[1742567048130,1.02382,1954.4,1954.3,1.02384]
[1742567048327,1.02387,1954.3,1954.2,5.96518]
[1742567048534,1.369,1954.3,1954.2,5.96518]
[1742567048724,1.369,1954.4,1954.3,1.02387]
[1742567049027,2.39282,1954.4,1954.3,1.02387]
[1742567049526,1.0238,1954.5,1954.4,1.02382]
[1742567049733,2.33894,1954.6,1954.5,1.02377]
[1742567049935,2.33894,1954.6,1954.5,2.44697]
[1742567050133,1.3152,1954.6,1954.5,2.44697]
[1742567050338,1.0237,1954.7,1954.6,1.02368]
[1742567050628,2.3389,1954.7,1954.6,1.02368]
[1742567050833,1.02371,1954.6,1954.5,3.12742]
[1742567051032,2.33891,1954.6,1954.5,3.12742]
[1742567051226,1.0237,1954.7,1954.6,1.0237]
[1742567051433,2.3389,1954.7,1954.6,1.0237]
[1742567051622,1.02371,1954.6,1954.5,1.70423]
[1742567051829,2.33887,1954.7,1954.5,1.70423]
[1742567052135,1.3152,1954.7,1954.6,1.02371]
[1742567052330,3.636,1954.8,1954.7,1.02366]
[1742567052537,0.7064,1954.9,1954.8,1.02361]
[1742567052740,1.3362,1954.9,1954.8,1.02361]
[1742567053234,2.35976,1954.9,1954.8,1.02361]
[1742567053545,1.3362,1954.9,1954.8,1.02361]
[1742567054034,3.635,1955.0,1954.9,1.02356]
[1742567054231,3.635,1955.0,1954.7,40.8]
[1742567054432,2.35979,1954.9,1954.7,41.82364]
[1742567054738,1.02361,1954.8,1954.7,40.8]
[1742567054941,1.3362,1954.8,1954.7,41.82363]
[1742567055133,2.35981,1954.8,1954.7,41.82363]
[1742567055740,1.0235,1955.0,1954.7,40.8]
[1742567055933,1.02363,1954.8,1954.6,6.8428]
[1742567056139,1.02368,1954.7,1954.6,1.0237]
[1742567056338,2.42528,1954.7,1954.6,1.0237]
[1742567056838,1.02371,1954.6,1954.5,0.6805]
[1742567057032,1.02377,1954.5,1954.4,4.23158]
[1742567057232,1.02377,1954.5,1954.4,3.2078]
[1742567057435,1.02394,1954.2,1954.1,1.02395]
[1742567057840,1.02393,1954.2,1954.1,1.02393]
[1742567058028,2.42553,1954.2,1954.1,1.02393]
[1742567058233,1.02398,1954.1,1954.0,0.00767794]
[1742567058434,2.42558,1954.1,1954.0,0.00767794]
[1742567058839,3.634,1954.3,1954.2,1.02392]
[1742567059040,2.33839,1954.3,1954.2,1.02392]
[1742567059235,2.33839,1954.3,1954.1,0.6702]
[1742567059236,1.02392,1954.2,1954.1,0.6702]
[1742567059437,1.02398,1954.1,1954.0,0.00767794]
[1742567059941,2.33844,1954.2,1954.0,1.03166794]
[1742567060241,1.02398,1954.1,1954.0,0.00767794]
[1742567060435,2.33848,1954.1,1954.0,0.00767794]
[1742567060839,2.73776806,1954.1,1954.0,0.00767794]
[1742567061144,1.02413,1953.8,1953.7,0.7138]
[1742567061345,1.02429,1953.5,1953.4,47.316]
[1742567062439,1.02434,1953.4,1953.3,0.65827794]
[1742567062634,2.38514,1953.4,1953.3,0.65827794]
[1742567063034,2.38514,1953.4,1953.3,0.00767794]
[1742567063640,2.38514,1953.4,1953.3,1.03206794]
[1742567064040,6.20327794,1953.6,1953.4,1.02434]
[1742567064041,1.02433,1953.5,1953.4,1.02434]
[1742567064244,1.02434,1953.4,1953.3,1.03202794]
[1742567065154,1.02434,1953.4,1953.3,2.35642794]
[1742567065355,1.02434,1953.4,1953.3,1.33207794]
[1742567065546,1.02434,1953.4,1953.3,0.00767794]
[1742567066352,4.23214,1953.4,1953.3,0.00767794]
[1742567066560,1.02455,1953.0,1952.9,3.0179]
[1742567066853,1.02455,1953.0,1952.9,1.9933]
[1742567067246,1.0246,1952.9,1952.8,40.8]
[1742567067454,5.6461,1952.9,1952.8,40.8]
[1742567067949,2.4383,1952.9,1952.8,41.82466]
[1742567068154,1.02457,1953.0,1952.9,1.02453]
[1742567068360,1.02457,1953.0,1952.9,2.45163]
[1742567068850,1.02457,1953.0,1952.9,1.4271]
[1742567069254,4.23237,1953.0,1952.9,1.4271]
[1742567069849,1.02457,1953.0,1952.9,2.4517]
[1742567070349,1.02457,1953.0,1952.9,1.4271]
[1742567070550,1.3018,1953.1,1952.7,0.67667794]
[1742567070551,3.86307,1953.1,1952.7,1.70136794]
[1742567070851,1.02466,1952.8,1952.7,2.99626794]
[1742567071150,1.02466,1952.8,1952.7,43.79626794]
[1742567071451,1.02466,1952.8,1952.7,40.80767794]
[1742567071656,1.02466,1952.8,1952.7,41.83238794]
[1742567071956,1.02466,1952.8,1952.7,43.12724794]
[1742567072254,7.0952,1953.3,1952.8,1.02466]
[1742567072557,1.02455,1953.1,1953.0,1.0245]
[1742567073255,1.02455,1953.1,1953.0,2.3194]
[1742567073850,2.39709,1953.2,1953.1,1.0245]
[1742567074956,1.02455,1953.0,1952.9,0.7048]
[1742567075152,1.02466,1952.8,1952.7,41.83233794]
[1742567075460,1.02466,1952.8,1952.7,43.20753794]
[1742567077961,2.41535,1952.9,1952.8,1.02466]
[1742567078454,2.4153,1952.9,1952.8,1.02466]
[1742567078958,1.02466,1952.8,1952.7,41.83233794]
[1742567079151,1.3689,1952.8,1952.7,1.03233794]
[1742567079352,1.73001,1953.2,1953.1,1.0245]
[1742567079662,1.02445,1953.2,1953.1,41.8245]
[1742567080251,1.02445,1953.2,1953.1,40.8]
[1742567080660,1.02455,1953.0,1952.9,1.02458]
[1742567081060,1.02455,1953.0,1952.9,41.82458]
[1742567081259,2.34715,1953.0,1952.9,41.8246]
[1742567081764,2.34715,1953.0,1952.9,43.1807]
[1742567082061,1.0246,1952.9,1952.8,3.636]
[1742567082364,1.02466,1952.8,1952.7,0.00767794]
[1742567082560,1.69616,1952.8,1952.7,0.00767794]
[1742567083062,3.06256,1952.8,1952.7,0.00767794]
[1742567083357,1.02488,1952.4,1952.2,0.6794]
[1742567083558,1.02488,1952.4,1952.3,1.02489]
[1742567083762,1.02502,1952.1,1952.0,48.37407]
[1742567084558,1.02502,1952.1,1952.0,49.79817]
[1742567084760,2.39142,1952.1,1952.0,49.79817]
[1742567085361,1.3664,1952.1,1952.0,49.79817]
[1742567085568,1.03268794,1952.2,1952.1,1.02502]
[1742567085569,0.00767794,1952.2,1952.1,1.02502]
[1742567086274,1.03264794,1952.2,1952.1,1.02502]
[1742567086566,1.02502,1952.1,1952.0,53.00593]
[1742567086768,1.43717794,1952.2,1952.1,1.02502]
[1742567086970,0.00767794,1952.2,1952.1,1.02502]
[1742567089061,0.00767794,1952.2,1952.1,41.82502]
[1742567091168,2.40523,1952.7,1952.6,1.02476]
[1742567091377,2.40523,1952.7,1952.4,6.19805]
[1742567091378,1.02475,1952.7,1952.4,6.19805]
[1742567091672,1.02475,1952.7,1952.4,6.02155]
[1742567091673,1.02481,1952.5,1952.4,6.02155]
[1742567091871,1.0248,1952.6,1952.5,1.02479]
[1742567092667,2.4096,1952.6,1952.5,2.34269]
[1742567094180,1.3848,1952.6,1952.5,2.34269]
[1742567094679,0.00767794,1952.7,1952.6,1.02476]
[1742567095676,0.00767794,1952.7,1952.6,4.23256]
[1742567096671,0.00767794,1952.7,1952.6,1.02476]
[1742567096878,0.00767794,1952.7,1952.6,4.23256]
[1742567097077,0.00767794,1952.7,1952.6,1.02476]
[1742567097877,1.35397794,1952.7,1952.6,1.02476]
[1742567098287,2.37868794,1952.7,1952.6,1.02476]
[1742567099076,2.37872794,1952.7,1952.6,1.02476]
[1742567100383,1.02476,1952.6,1952.5,2.34271]
[1742567100683,1.3487,1952.6,1952.5,2.34271]
[1742567100884,2.37346,1952.6,1952.5,2.34271]
[1742567101087,2.37346,1952.6,1952.5,1.3179]
[1742567101280,1.02481,1952.5,1952.4,2.38553]
[1742567101482,2.44621,1952.5,1952.4,1.02483]
[1742567102087,1.03238794,1952.7,1952.6,1.02476]
[1742567102281,1.0248,1952.6,1952.5,1.02476]
[1742567102481,0.00767794,1952.7,1952.6,1.02476]
[1742567102788,0.00767794,1952.7,1952.6,4.65976]
[1742567102978,0.00767794,1952.7,1952.6,3.635]
[1742567103179,1.03238794,1952.7,1952.6,3.635]
[1742567103383,0.00767794,1952.7,1952.1,47.26074]
[1742567103587,1.0249,1952.4,1952.3,1.02485]
[1742567104186,2.1388,1952.6,1952.5,1.02481]
[1742567104487,1.4214,1952.6,1952.5,1.02481]
[1742567104782,1.03238794,1952.7,1952.6,1.02476]
[1742567105175,0.00767794,1952.7,1952.5,0.7052]
[1742567105376,0.00767794,1952.7,1952.6,5.62996]
[1742567105577,0.00767794,1952.7,1952.6,6.28236]
[1742567105888,1.03238794,1952.7,1952.6,3.07456]
[1742567106387,0.00767794,1952.7,1952.6,3.07456]
[1742567106585,1.03238794,1952.7,1952.6,3.07456]
[1742567106796,0.00767794,1952.7,1952.6,3.07456]
[1742567107289,1.03238794,1952.7,1952.6,3.07456]
[1742567107688,0.00767794,1952.7,1952.6,3.07456]
[1742567108081,1.03238794,1952.7,1952.6,3.07456]
[1742567108481,0.00767794,1952.7,1952.6,3.07456]
[1742567109288,0.00767794,1952.7,1952.6,6.28236]
[1742567111282,0.00767794,1952.7,1952.6,6.92477273]
[1742567111591,7.94e-06,1952.7,1952.6,6.92477273]
[1742567112093,7.94e-06,1952.7,1952.6,9.42477273]
[1742567112285,7.94e-06,1952.7,1952.6,6.92477273]
[1742567113393,1.02471794,1952.7,1952.6,3.71697273]
[1742567113587,1.02471794,1952.7,1952.6,1.02476]
[1742567114089,7.94e-06,1952.7,1952.6,1.02476]
[1742567114492,1.02471794,1952.7,1952.6,1.02476]
[1742567114686,7.94e-06,1952.7,1952.2,0.6527]
[1742567114886,1.02492,1952.4,1952.3,1.02488]
[1742567115287,1.02496,1952.3,1952.2,1.02493]
[1742567115483,6.44041,1952.6,1952.1,47.6418]
[1742567115484,1.0249,1952.4,1952.3,1.02487]
[1742567115688,4.9033,1952.6,1952.5,1.02481]
[1742567115990,1.68515794,1952.7,1952.6,1.02476]
[1742567116388,1.02487,1952.4,1952.3,1.70387]
[1742567116584,1.02487,1952.4,1952.3,1.02487]
[1742567117192,1.02486,1952.5,1952.4,1.02482]
[1742567117393,1.02492,1952.4,1952.3,1.0249]
[1742567119596,1.02492,1952.3,1952.2,6.05276]
[1742567119796,1.02502,1952.1,1952.0,48.37804]
[1742567120490,2.35741,1952.2,1952.1,1.02502]
[1742567121185,0.6661,1952.2,1952.1,1.02502]
[1742567121393,3.8741,1952.6,1952.3,1.02491]
[1742567121588,1.02491,1952.4,1952.3,1.0249]
[1742567121793,1.02491,1952.4,1952.3,41.8249]
[1742567122792,1.02491,1952.4,1952.3,40.8]
[1742567122997,1.02491,1952.4,1952.3,1.02492]
[1742567123199,7.10216,1952.6,1952.2,1.3]
[1742567123200,4.5402,1952.6,1952.2,1.3]
[1742567123501,1.02491,1952.4,1952.3,41.8249]
[1742567124202,4.5402,1952.6,1952.3,41.8249]
[1742567124203,4.5402,1952.6,1952.3,40.8]
[1742567124393,4.5402,1952.6,1952.3,41.82491]
[1742567124394,1.02487,1952.4,1952.3,41.82491]
[1742567124801,1.02487,1952.4,1952.3,40.8]
[1742567125301,1.3898,1952.5,1952.4,1.02487]
[1742567125502,1.3898,1952.5,1952.4,2.41647]
[1742567125700,2.41461,1952.5,1952.4,2.41647]
[1742567125901,1.02487,1952.4,1952.3,40.8]
[1742567126097,1.3301,1952.4,1952.3,1.02492]
[1742567126395,2.35497,1952.4,1952.3,2.41652]
[1742567126602,2.35497,1952.4,1952.3,1.02492]
[1742567126800,1.02492,1952.3,1952.2,46.85056]
[1742567127019,2.35502,1952.3,1952.2,1.02497]
[1742567127194,1.02497,1952.2,1952.1,2.41659]
[1742567127497,2.35507,1952.2,1952.1,1.3916]
[1742567128095,1.02502,1952.1,1952.0,88.153]
[1742567128306,2.37862,1952.1,1952.0,88.153]
[1742567128698,2.37862,1952.1,1952.0,41.82504]
[1742567128900,1.3536,1952.1,1952.0,41.82504]
[1742567129098,1.3536,1952.1,1952.0,43.22944]
[1742567129601,8.1742,1952.6,1952.1,2.56255]
[1742567129804,1.3536,1952.3,1952.2,2.42937]
[1742567129997,1.3536,1952.3,1952.2,43.22937]
[1742567129998,2.37852,1952.3,1952.2,43.22937]
[1742567130503,2.37852,1952.3,1952.2,41.82497]
[1742567130698,2.37852,1952.3,1952.2,40.8]
[1742567130894,1.3536,1952.3,1952.0,1.4044]
[1742567131104,2.37859,1952.2,1952.1,1.02498]
[1742567131294,2.37859,1952.2,1952.1,41.82498]
[1742567131607,1.02502,1952.1,1952.0,2.42944]
[1742567131802,1.4195,1952.1,1952.0,2.42944]
[1742567132003,2.44452,1952.1,1952.0,2.42944]
[1742567133000,2.44452,1952.1,1952.0,1.02504]
[1742567133204,1.02508,1952.0,1951.9,0.00767794]
[1742567133504,1.02508,1952.0,1951.4,1.3239]
[1742567133505,5.12567,1951.9,1951.1,3.2078]
[1742567133710,3.2078,1951.7,1951.2,3.94704]
[1742567133919,3.2078,1951.7,1951.4,1.02535]
[1742567133920,1.02537,1951.5,1951.4,1.02535]
[1742567134203,1.02537,1951.5,1951.2,3.94704]
[1742567134204,1.02543,1951.4,1951.3,1.02542]
[1742567134412,2.45393,1951.4,1951.3,1.2957]
[1742567135116,3.14784,1951.4,1951.3,1.02544]
[1742567135304,0.00767794,1951.5,1951.4,1.02539]
[1742567135504,0.00767794,1951.5,1951.4,5.35139]
[1742567135705,0.00767794,1951.5,1951.4,6.64709]
[1742567136105,0.00767794,1951.5,1951.4,46.4217]
[1742567136106,2.46151794,1951.5,1951.4,46.4217]
[1742567136308,2.46151794,1951.5,1951.4,47.44709]
[1742567136998,2.46151794,1951.5,1951.4,46.4217]
[1742567137210,2.46151794,1951.5,1951.2,0.00767794]
[1742567137211,1.02544,1951.3,1951.2,4.66713794]
[1742567137409,1.02544,1951.3,1951.2,2.36293794]
[1742567137610,2.34323,1951.4,1951.3,1.02544]
[1742567137914,2.34323,1951.4,1951.3,2.35524]
[1742567139612,2.34323,1951.4,1951.3,1.3298]
[1742567139805,1.02544,1951.3,1951.2,1.03314794]
[1742567140006,2.34324,1951.3,1951.2,0.00767794]
[1742567140911,2.34324,1951.3,1951.2,1.03317794]
[1742567141110,3.90697794,1951.5,1951.4,1.02539]
[1742567141309,0.00767794,1951.5,1951.4,1.02539]
[1742567141509,0.00767794,1951.5,1951.4,1.69139]
[1742567142117,0.00767794,1951.5,1951.4,42.49139]
[1742567142410,2.40181794,1951.5,1951.4,43.85339]
[1742567142716,1.37647794,1951.5,1951.4,43.85339]
[1742567142922,2.40181794,1951.5,1951.4,43.85339]
[1742567143123,2.40181794,1951.5,1951.4,42.828]
[1742567143320,2.40181794,1951.5,1951.4,40.8]
[1742567144323,2.40181794,1951.5,1951.4,41.82539]
[1742567144518,1.37647794,1951.5,1951.4,43.22389]
[1742567144919,2.40181794,1951.5,1951.4,2.42389]
[1742567145425,2.40181794,1951.5,1951.4,1.3985]
[1742567145726,1.02539,1951.4,1951.3,41.82543]
[1742567145926,2.42579,1951.4,1951.3,43.22393]
[1742567146218,2.42579,1951.4,1951.3,2.42394]
[1742567146424,2.42579,1951.4,1951.3,1.3985]
[1742567146725,2.42579,1951.4,1951.3,2.42394]
[1742567146931,2.42579,1951.4,1951.3,1.3985]
[1742567147128,2.42579,1951.4,1951.3,2.42394]
[1742567147621,1.02544,1951.3,1951.2,1.72303794]
[1742567147822,2.44314,1951.3,1951.2,1.72303794]
[1742567148224,2.44314,1951.3,1951.2,3.11123794]
[1742567148523,2.44314,1951.3,1951.2,2.08577794]
[1742567148824,2.44314,1951.3,1951.2,2.42137794]
[1742567150027,2.44314,1951.3,1951.2,1.39587794]
[1742567150325,2.44314,1951.3,1951.2,2.42137794]
[1742567150526,1.4177,1951.3,1951.2,2.42137794]
[1742567150728,0.00767794,1951.5,1951.4,1.02539]
[1742567151021,0.00767794,1951.5,1951.4,4.23319]
[1742567151323,0.00767794,1951.5,1951.4,45.74879]
[1742567151719,3.914,1952.1,1951.8,1.02518]
[1742567151920,3.2078,1952.1,1952.0,1.02508]
[1742567152127,1.02508,1952.1,1952.0,1.02505]
[1742567152328,1.02508,1952.1,1952.0,2.33475]
[1742567152634,2.45881,1952.2,1952.1,1.02502]
[1742567152834,2.46648794,1952.2,1952.1,2.40282]
[1742567153133,2.46648794,1952.2,1952.1,1.3778]
[1742567153335,1.02508,1952.0,1951.9,5.0579]
[1742567153632,1.02508,1952.0,1951.9,0.7156]
[1742567153819,1.02513,1951.9,1951.8,1.02513]
[1742567154036,1.3277,1951.9,1951.8,1.02513]
[1742567154224,0.00767794,1952.2,1951.8,3.2078]
[1742567154530,0.00767794,1952.2,1952.1,1.02502]
[1742567154732,0.00767794,1952.2,1952.1,3.11412]
[1742567154930,1.02473,1952.7,1952.6,1.02472]
[1742567155231,2.35241,1952.7,1952.6,1.02476]
[1742567155732,1.3277,1952.7,1952.6,1.02476]
[1742567155933,2.35241,1952.7,1952.6,1.02476]
[1742567156130,2.35241,1952.7,1952.6,2.36956]
[1742567156329,2.35241,1952.7,1952.6,3.07326]
[1742567157228,4.23243,1952.9,1952.8,1.02466]
[1742567157827,1.02466,1952.8,1952.7,2.36947]
[1742567158027,1.3208,1953.0,1952.7,1.3448]
[1742567158230,1.0246,1952.9,1952.8,2.36942]
[1742567158835,2.34539,1953.0,1952.9,1.0246]
[1742567159029,2.34539,1953.0,1952.9,2.4006]
[1742567159725,1.02454,1953.1,1953.0,1.02454]
[1742567159931,2.41354,1953.1,1953.0,1.376]
[1742567160531,2.41354,1953.1,1953.0,2.40055]
[1742567160532,1.389,1953.1,1953.0,2.40055]
[1742567160733,2.4135,1953.1,1953.0,2.40055]
[1742567160938,2.4135,1953.1,1953.0,1.376]
[1742567161137,1.389,1953.1,1952.7,3.633]
[1742567161330,1.389,1953.1,1952.7,5.009]
[1742567161331,1.02466,1952.8,1952.7,5.009]
[1742567161636,1.02466,1952.8,1952.7,4.65767]
[1742567162135,1.02466,1952.8,1952.6,1.4152]
[1742567162136,1.02471,1952.7,1952.6,1.4152]
[1742567162336,2.33781,1952.7,1952.6,2.43996]
[1742567162535,0.6595,1953.0,1952.8,1.02466]
[1742567162737,1.02466,1952.8,1952.7,1.02467]
[1742567163139,1.02471,1952.7,1952.6,5.0482]
[1742567164435,1.02471,1952.7,1952.6,1.4152]
[1742567164635,3.87462,1952.9,1952.5,0.00767794]
[1742567164636,1.02476,1952.6,1952.5,0.00767794]
[1742567166537,1.3612,1952.7,1952.5,0.00767794]
[1742567166739,1.02462,1952.9,1952.8,1.02461]
[1742567166938,2.38579,1953.0,1952.9,1.02458]
[1742567167141,1.02463,1952.9,1952.8,1.02462]
[1742567167836,2.38578,1953.0,1952.9,1.0246]
[1742567168040,1.3612,1953.0,1952.9,1.0246]
[1742567168441,2.38575,1953.0,1952.9,1.0246]
[1742567168740,1.02466,1952.8,1952.7,6.00256]
[1742567168936,2.33574,1952.9,1952.8,1.02466]
[1742567169139,1.02458,1953.0,1952.9,1.0246]
[1742567169340,2.33568,1953.0,1952.9,41.8246]
[1742567169738,1.3111,1953.0,1952.9,41.8246]
[1742567169941,4.23232,1953.1,1953.0,1.02455]
[1742567170145,1.02455,1953.0,1952.9,40.8]
[1742567170439,1.02476,1952.6,1952.5,1.03244794]
[1742567170643,1.02476,1952.6,1952.5,0.00767794]
[1742567172244,2.56212,1952.5,1952.1,0.6487]
[1742567172541,1.02502,1952.1,1952.0,3.631]
[1742567172741,1.02508,1952.0,1951.9,1.7259]
[1742567172943,1.02508,1952.0,1951.9,1.72593]
[1742567173143,1.02513,1951.9,1951.8,46.10485]
[1742567173337,1.02513,1951.9,1951.8,46.11252794]
[1742567173537,2.38921,1952.0,1951.9,1.02513]
[1742567173940,2.38921,1952.0,1951.8,42.48152794]
[1742567173941,1.02513,1951.9,1951.8,42.48152794]
[1742567174136,2.40043,1951.9,1951.8,42.48152794]
[1742567174441,2.40043,1951.9,1951.8,0.00767794]
[1742567174942,1.02534,1951.5,1951.4,2.37347]
[1742567175139,1.02539,1951.4,1951.3,2.42129]
[1742567175345,1.02539,1951.4,1951.3,43.22129]
[1742567175540,6.8398,1951.9,1951.5,1.02534]
[1742567175735,2.40051,1951.8,1951.7,1.02519]
[1742567175939,1.3753,1951.8,1951.7,2.42109]
[1742567176141,2.40048,1951.8,1951.7,1.3959]
[1742567176340,1.02523,1951.7,1951.6,0.00767794]
[1742567176540,2.40053,1951.7,1951.6,0.00767794]
[1742567176740,2.40053,1951.7,1951.6,1.03296794]
[1742567177044,2.40053,1951.7,1951.6,0.00767794]
[1742567177447,0.7117,1952.0,1951.6,7.87276794]
[1742567177646,0.00767794,1952.1,1952.0,1.02508]
[1742567178645,0.00767794,1952.1,1952.0,4.23288]
[1742567178840,6.48238,1952.7,1952.4,1.02487]
[1742567178841,1.312,1952.5,1952.4,1.02487]
[1742567179048,1.02469,1952.8,1952.7,1.02466]
[1742567179244,3.02994,1952.9,1952.8,1.02466]
[1742567179547,1.312,1952.9,1952.8,1.02466]
[1742567179746,10.80705,1953.2,1952.9,1.02455]
[1742567179747,1.02458,1953.0,1952.9,1.02455]
[1742567179947,1.02458,1953.0,1952.9,1.3321]
[1742567180145,1.0246,1952.9,1952.8,0.00767794]
[1742567180448,2.3474,1952.9,1952.8,0.00767794]
[1742567180843,1.3228,1952.9,1952.8,1.03233794]
[1742567181241,1.03217794,1953.1,1953.0,1.02455]
[1742567181446,2.35497794,1953.1,1953.0,1.02455]
[1742567181646,1.02455,1953.0,1952.9,1.3321]
[1742567181945,1.0246,1952.9,1952.8,1.73313794]
[1742567182146,1.0246,1952.9,1952.8,2.04057794]
[1742567182349,1.0246,1952.9,1952.8,0.00767794]
[1742567182949,4.2324,1952.9,1952.8,0.00767794]
[1742567184654,4.2324,1952.9,1952.4,1.02485]
[1742567184655,1.02481,1952.5,1952.4,1.02485]
[1742567184848,1.02481,1952.5,1952.4,1.02487]
[1742567185158,1.02481,1952.5,1952.4,2.37597]
[1742567185345,0.00767794,1953.1,1952.5,1.02481]
[1742567185653,1.3042,1953.0,1952.9,1.02459]
[1742567186061,1.3042,1953.0,1952.9,4.65559]
[1742567186351,1.3042,1953.0,1952.9,6.07449]
[1742567186753,2.32875,1953.0,1952.9,5.0499]
[1742567186953,2.32875,1953.0,1952.9,1.4189]
[1742567187554,2.32875,1953.0,1952.9,2.4435]
[1742567188249,1.3042,1953.0,1952.9,2.4435]
[1742567188639,1.03221794,1953.1,1953.0,1.02455]